[Event "WYCC 2018 G14"]
[Site "Halkidiki"]
[Date "2018.10.30"]
[Round "11"]
[White "Djordjevic, Nevena"]
[Black "Kasaeva, Sofiia"]
[Result "0-1"]
[ECO "E30"]
[WhiteElo "1704"]
[BlackElo "1874"]
[Annotator "NA"]
[PlyCount "72"]
[EventDate "2018.10.20"]
[EventType "swiss"]
[EventCountry "GRE"]
[SourceTitle "playchess.com"]
[Source "ChessBase"]
[SourceQuality "1"]
[TimeControl "40/5400+30:1800+30"]

1. d4 {[%emt 0:00:00]} Nf6 {[%emt 0:00:00]} 2. c4 {[%emt 0:00:00]} e6 {[%emt 0:00:00]} 3. Nc3 {[%emt 0:00:00]} Bb4 {[%emt 0:00:00]} 4. Bg5 {[%emt 0:00:00]} c5 {[%emt 0:00:01]} 5. d5 {[%emt 0:00:55]} d6 {[%emt 0:00:09]} 6. e3 {[%emt 0:01:26]} exd5 {[%emt 0:00:11]} 7. cxd5 {[%emt 0:01:03]} Nbd7 {[%emt 0:00:07]} 8. Nge2 {[%emt 0:13:39]} Qa5 {[%emt 0:09:17]} 9. f3 {[%emt 0:12:06]} O-O {[%emt 0:13:10]} 10. a3 {[%emt 0:03:18]} Bxc3+ {[%emt 0:01:40]} 11. Nxc3 {[%emt 0:02:27]} h6 {[%emt 0:03:19]} 12. Bh4 {[%emt 0:07:54]} Re8 {[%emt 0:02:05]} 13. e4 {[%emt 0:04:09]} Nxe4 {[%emt 0:03:29]} 14. fxe4 {[%emt 0:11:58]} Rxe4+ {[%emt 0:01:13]} 15. Be2 {[%emt 0:00:55]} Rxh4 {[%emt 0:00:46]} 16. O-O {[%emt 0:01:19]} Ne5 {[%emt 0:04:43]} 17. Qe1 {[%emt 0:08:24]} Qd8 {[%emt 0:07:55]} 18. Qf2 {[%emt 0:04:54]} Bg4 {[%emt 0:03:05]} 19. Rae1 {[%emt 0:01:24]} Bxe2 {[%emt 0:15:04]} 20. Rxe2 {[%emt 0:00:57]} Rg4 {[%emt 0:01:01]} 21. Ne4 {[%emt 0:04:03]} Qe7 {[%emt 0:15:49]} 22. h3 {[%emt 0:07:16]} Rg6 {[%emt 0:00:47]} 23. Qf5 {[%emt 0:00:26]} Re8 {[%emt 0:01:13]} 24. Rfe1 {[%emt 0:01:09]} Qd7 {[%emt 0:09:44]} 25. Nxd6 {[%emt 0:08:33]} Rxd6 {[%emt 0:00:30]} 26. Qxd7 {[%emt 0:01:04]} Rxd7 {[%emt 0:00:05]} 27. Rxe5 {[%emt 0:00:03]} Rxe5 {[%emt 0:00:11]} 28. Rxe5 {[%emt 0:00:03]} f6 {[%emt 0:00:27]} 29. Rh5 {[%emt 0:00:51]} Kh7 {[%emt 0:01:20]} 30. d6 {[%emt 0:00:25]} g5 {[%emt 0:00:15]} 31. h4 {[%emt 0:01:19]} Kg6 {[%emt 0:00:22]} 32. g4 {[%emt 0:00:09]} Rxd6 {[%emt 0:00:08]} 33. hxg5 {[%emt 0:00:06]} fxg5 {[%emt 0:00:17]} 34. Rh2 {[%emt 0:00:32]} Rd1+ {[%emt 0:00:06]} 35. Kg2 {[%emt 0:00:07]} Rd2+ {[%emt 0:00:05]} 36. Kg3 {[%emt 0:00:05]} Rxh2 {[%emt 0:00:08]} 0-1

[Event "WYCC 2018 G14"]
[Site "Halkidiki"]
[Date "2018.10.30"]
[Round "11"]
[White "Figueroa Bernal, Julia Dennis"]
[Black "Kouta, Antonia"]
[Result "0-1"]
[ECO "B84"]
[WhiteElo "1650"]
[BlackElo "1812"]
[Annotator "NA"]
[PlyCount "90"]
[EventDate "2018.10.20"]
[EventType "swiss"]
[EventCountry "GRE"]
[SourceTitle "playchess.com"]
[Source "ChessBase"]
[SourceQuality "1"]
[TimeControl "40/5400+30:1800+30"]

1. e4 {[%emt 0:00:00]} c5 {[%emt 0:00:00]} 2. Nf3 {[%emt 0:00:00]} d6 {[%emt 0:00:00]} 3. d4 {[%emt 0:00:00]} cxd4 {[%emt 0:00:00]} 4. Nxd4 {[%emt 0:00:00]} Nf6 {[%emt 0:00:00]} 5. Nc3 {[%emt 0:00:00]} a6 {[%emt 0:00:00]} 6. Be2 {[%emt 0:00:00]} e6 {[%emt 0:00:48]} 7. Be3 {[%emt 0:00:08]} Nbd7 {[%emt 0:03:16]} 8. g4 {[%emt 0:03:52]} h6 {[%emt 0:02:11]} 9. Qd2 {[%emt 0:00:28]} b5 {[%emt 0:01:25]} 10. a3 {[%emt 0:00:18]} Bb7 {[%emt 0:02:42]} 11. f3 {[%emt 0:02:04]} Be7 {[%emt 0:11:42]} 12. O-O-O {[%emt 0:01:45]} d5 {[%emt 0:01:27]} 13. exd5 {[%emt 0:01:33]} Nxd5 {[%emt 0:01:05]} 14. Nxd5 {[%emt 0:00:29]} Bxd5 {[%emt 0:00:06]} 15. h4 {[%emt 0:09:05]} Bxh4 {[%emt 0:10:14]} 16. g5 {[%emt 0:05:36]} hxg5 {[%emt 0:04:12]} 17. Kb1 {[%emt 0:00:20]} Rg8 {[%emt 0:07:01]} 18. Nf5 {[%emt 0:06:08]} Ne5 {[%emt 0:17:40]} 19. Qc3 {[%emt 0:24:23]} f6 {[%emt 0:11:56]} 20. Qc5 {[%emt 0:14:44]} exf5 {[%emt 0:04:18]} 21. Rxd5 {[%emt 0:00:19]} Qe7 {[%emt 0:02:15]} 22. Qb6 {[%emt 0:03:04]} Kf7 {[%emt 0:02:04]} 23. Rhd1 {[%emt 0:03:00]} Rgb8 {[%emt 0:00:56]} 24. Qa5 {[%emt 0:00:55]} Kg6 {[%emt 0:05:05]} 25. Bc5 {[%emt 0:03:25]} Qe8 {[%emt 0:00:46]} 26. f4 {[%emt 0:01:55]} Nc4 {[%emt 0:02:44]} 27. Bxc4 {[%emt 0:00:13]} bxc4 {[%emt 0:00:04]} 28. Bb6 {[%emt 0:02:07]} Qe4 {[%emt 0:02:42]} 29. fxg5 {[%emt 0:00:50]} Bxg5 {[%emt 0:00:50]} 30. Rd7 {[%emt 0:03:04]} Rb7 {[%emt 0:02:07]} 31. R7d4 {[%emt 0:02:44]} Qc6 {[%emt 0:01:07]} 32. Rd6 {[%emt 0:00:42]} Qb5 {[%emt 0:02:05]} 33. Qxb5 {[%emt 0:00:25]} axb5 {[%emt 0:00:04]} 34. Bc5 {[%emt 0:00:24]} Re8 {[%emt 0:00:59]} 35. Bb4 {[%emt 0:00:59]} f4 {[%emt 0:01:00]} 36. Rf1 {[%emt 0:00:24]} Re2 {[%emt 0:00:55]} 37. Bd2 {[%emt 0:01:28]} Re4 {[%emt 0:00:24]} 38. Rd5 {[%emt 0:01:19]} Bh6 {[%emt 0:01:21]} 39. Kc1 {[%emt 0:01:30]} Kf7 {[%emt 0:00:41]} 40. Rh5 {[%emt 0:00:00]} Bg5 {[%emt 0:00:00]} 41. Rh2 {[%emt 0:01:41]} Ke6 {[%emt 0:02:12]} 42. Rhf2 {[%emt 0:00:27]} Kf5 {[%emt 0:03:54]} 43. Kd1 {[%emt 0:01:12]} Rd7 {[%emt 0:00:29]} 44. Kc1 {[%emt 0:00:19]} Rde7 {[%emt 0:00:43]} 45. Kd1 {[%emt 0:00:07]} Bh6 {[%emt 0:01:07]} 0-1

[Event "WYCC 2018 G14"]
[Site "Halkidiki"]
[Date "2018.10.30"]
[Round "11"]
[White "Kumar, Arya"]
[Black "Sleurs, Juliette"]
[Result "1-0"]
[ECO "C44"]
[WhiteElo "1619"]
[BlackElo "1812"]
[Annotator "NA"]
[PlyCount "83"]
[EventDate "2018.10.20"]
[EventType "swiss"]
[EventCountry "GRE"]
[SourceTitle "playchess.com"]
[Source "ChessBase"]
[SourceQuality "1"]
[TimeControl "40/5400+30:1800+30"]

1. e4 e5 2. Nf3 Nc6 3. d4 exd4 4. c3 Nf6 5. e5 Ng8 6. cxd4 d5 7. h3 Bb4+ 8. Nc3 Bf5 9. Bd3 Bxd3 10. Qxd3 Nge7 11. O-O h6 12. Be3 O-O 13. a3 Bxc3 14. Qxc3 Nf5 15. b4 Nxe3 16. Qxe3 f6 17. b5 Ne7 18. Rac1 c6 19. bxc6 Nxc6 20. e6 Re8 21. Rfe1 Qe7 22. Nh4 Nd8 23. Nf5 Qxe6 24. Qc3 Qd7 25. Rxe8+ Qxe8 26. Qg3 Ne6 27. Re1 g6 28. Nxh6+ Kh7 29. Ng4 Kg7 30. Qe3 Kf7 31. Qf3 Qd8 32. Ne5+ Kg7 33. Nxg6 Kxg6 34. Rxe6 Kf7 35. Qf5 Rc8 36. g4 Rc6 37. Rxc6 bxc6 38. g5 Qe7 39. Qh7+ Ke6 40. Qxe7+ Kxe7 41. g6 f5 42. h4 {[%emt 1:39:56]} 1-0

[Event "WYCC 2018 G14"]
[Site "Halkidiki"]
[Date "2018.10.30"]
[Round "11"]
[White "Woods, Charisse"]
[Black "Maciulaityte, Barbora"]
[Result "0-1"]
[ECO "B73"]
[WhiteElo "1511"]
[BlackElo "1715"]
[Annotator "NA"]
[PlyCount "60"]
[EventDate "2018.10.20"]
[EventType "swiss"]
[EventCountry "GRE"]
[SourceTitle "playchess.com"]
[Source "ChessBase"]
[SourceQuality "1"]
[TimeControl "40/5400+30:1800+30"]

1. e4 {[%emt 0:00:00]} c5 {[%emt 0:00:00]} 2. Nf3 {[%emt 0:00:00]} d6 {[%emt 0:00:00]} 3. d4 {[%emt 0:00:00]} cxd4 {[%emt 0:00:00]} 4. Nxd4 {[%emt 0:00:00]} Nf6 {[%emt 0:00:03]} 5. Nc3 {[%emt 0:00:00]} g6 {[%emt 0:00:06]} 6. Be3 {[%emt 0:00:00]} Bg7 {[%emt 0:00:07]} 7. Be2 {[%emt 0:00:04]} O-O {[%emt 0:00:20]} 8. O-O {[%emt 0:00:05]} Nc6 {[%emt 0:00:33]} 9. Qd2 {[%emt 0:00:12]} Bd7 {[%emt 0:04:22]} 10. f4 {[%emt 0:02:03]} a6 {[%emt 0:04:03]} 11. Bf3 {[%emt 0:03:45]} Na5 {[%emt 0:06:20]} 12. b3 Rc8 {[%emt 0:05:39]} 13. h3 {[%emt 0:06:36]} Nc6 {[%emt 0:05:03]} 14. f5 {[%emt 0:11:55]} Ne5 {[%emt 0:07:27]} 15. Nde2 {[%emt 0:03:23]} Nxf3+ {[%emt 0:03:11]} 16. Rxf3 {[%emt 0:00:17]} Nxe4 {[%emt 0:05:26]} 17. Nxe4 {[%emt 0:03:08]} Bxa1 {[%emt 0:00:12]} 18. fxg6 {[%emt 0:01:17]} fxg6 {[%emt 0:01:35]} 19. c3 {[%emt 0:01:19]} Rxf3 {[%emt 0:03:33]} 20. gxf3 {[%emt 0:00:18]} Qa5 {[%emt 0:13:57]} 21. Bh6 {[%emt 0:07:05]} Qe5 {[%emt 0:07:28]} 22. b4 {[%emt 0:08:31]} Bc6 {[%emt 0:07:00]} 23. Bf4 {[%emt 0:01:55]} Qd5 {[%emt 0:03:45]} 24. Nd4 {[%emt 0:01:51]} Qc4 {[%emt 0:03:03]} 25. Nxc6 {[%emt 0:03:28]} Rxc6 {[%emt 0:00:20]} 26. Bh6 {[%emt 0:07:53]} Bxc3 {[%emt 0:01:25]} 27. Nxc3 {[%emt 0:00:30]} Qxc3 {[%emt 0:00:07]} 28. Qd5+ {[%emt 0:00:08]} Kh8 {[%emt 0:00:41]} 29. Qf7 {[%emt 0:04:08]} Qe1+ {[%emt 0:00:10]} 30. Kg2 {[%emt 0:00:33]} Rc2+ {[%emt 0:00:06]} 0-1